[Event "15e Open International de Quenza"]
[Site "Quenza"]
[Date "2026.07.05"]
[Round "4.3"]
[White "KOSTENIUK, Alexandra"]
[Black "FRESSINET, Laurent"]
[Result "1/2-1/2"]
[TimeControl "5min+3s"]
[WhiteTitle "GM"]
[BlackTitle "GM"]
[WhiteFideId "-"]
[BlackFideId "-"]
[WhiteElo "2392"]
[BlackElo "2565"]

1. e4 {[%clk 00:05:03]} e5 {[%clk 00:05:03]} {[%emt 00:00:02]} 2. Nf3 {[%clk
00:05:03]} {[%emt 00:00:02]} Nc6 {[%clk 00:05:03]} {[%emt 00:00:01]} 3. Bc4
{[%clk 00:05:03]} {[%emt 00:00:02]} Nf6 {[%clk 00:05:03]} {[%emt 00:00:01]} 4.
d3 {[%clk 00:05:03]} {[%emt 00:00:01]} Bc5 {[%clk 00:05:03]} {[%emt 00:00:02]}
5. a3 {[%clk 00:05:03]} {[%emt 00:00:01]} a6 {[%clk 00:05:00]} {[%emt
00:00:07]} 6. h3 {[%clk 00:05:03]} {[%emt 00:00:02]} d6 {[%clk 00:04:59]}
{[%emt 00:00:04]} 7. Nc3 {[%clk 00:05:01]} {[%emt 00:00:06]} Be6 {[%clk
00:04:47]} {[%emt 00:00:15]} 8. Nd5 {[%clk 00:04:49]} {[%emt 00:00:15]} Bxd5
{[%clk 00:04:43]} {[%emt 00:00:07]} 9. exd5 {[%clk 00:04:49]} {[%emt 00:00:03]}
Ne7 {[%clk 00:04:43]} {[%emt 00:00:02]} 10. Bg5 {[%clk 00:04:46]} {[%emt
00:00:06]} Ng6 {[%clk 00:04:37]} {[%emt 00:00:09]} 11. Qd2 {[%clk 00:04:34]}
{[%emt 00:00:16]} h6 {[%clk 00:04:22]} {[%emt 00:00:18]} 12. Be3 {[%clk
00:04:34]} {[%emt 00:00:02]} Bxe3 {[%clk 00:04:22]} {[%emt 00:00:01]} 13. fxe3
{[%clk 00:04:34]} {[%emt 00:00:01]} e4 {[%clk 00:04:17]} {[%emt 00:00:07]} 14.
dxe4 {[%clk 00:04:22]} {[%emt 00:00:15]} Nxe4 {[%clk 00:03:47]} {[%emt
00:00:33]} 15. Qd4 {[%clk 00:04:22]} {[%emt 00:00:01]} Qe7 {[%clk 00:03:18]}
{[%emt 00:00:32]} 16. Bd3 {[%clk 00:04:12]} {[%emt 00:00:13]} Nf6 {[%clk
00:03:13]} {[%emt 00:00:08]} 17. Bf5 {[%clk 00:03:37]} {[%emt 00:00:38]} Ne5
{[%clk 00:03:06]} {[%emt 00:00:10]} 18. O-O {[%clk 00:03:22]} {[%emt 00:00:19]}
O-O {[%clk 00:02:56]} {[%emt 00:00:12]} 19. c4 {[%clk 00:03:18]} {[%emt
00:00:07]} Rfe8 {[%clk 00:02:50]} {[%emt 00:00:09]} 20. Rae1 {[%clk 00:03:18]}
{[%emt 00:00:02]} Nxf3+ {[%clk 00:02:45]} {[%emt 00:00:08]} 21. Rxf3 {[%clk
00:03:11]} {[%emt 00:00:10]} Qe5 {[%clk 00:02:45]} {[%emt 00:00:01]} 22. Qd2
{[%clk 00:02:39]} {[%emt 00:00:34]} b5 {[%clk 00:02:34]} {[%emt 00:00:14]} 23.
Rc1 {[%clk 00:01:52]} {[%emt 00:00:50]} Rab8 {[%clk 00:02:27]} {[%emt
00:00:10]} 24. b4 {[%clk 00:01:52]} {[%emt 00:00:01]} bxc4 {[%clk 00:02:06]}
{[%emt 00:00:25]} 25. Rxc4 {[%clk 00:01:52]} {[%emt 00:00:01]} Qa1+ {[%clk
00:02:06]} {[%emt 00:00:02]} 26. Kh2 {[%clk 00:01:41]} {[%emt 00:00:14]} Qxa3
{[%clk 00:02:01]} {[%emt 00:00:07]} 27. Bc2 {[%clk 00:01:07]} {[%emt 00:00:38]}
Qa1 {[%clk 00:01:49]} {[%emt 00:00:15]} 28. Rd4 {[%clk 00:01:07]} Re5 {[%clk
00:01:33]} {[%emt 00:00:19]} 29. Qd3 {[%clk 00:00:45]} {[%emt 00:00:25]} Kf8
{[%clk 00:01:33]} {[%emt 00:00:01]} 30. Qc4 {[%clk 00:00:38]} {[%emt 00:00:10]}
Re7 {[%clk 00:01:19]} {[%emt 00:00:17]} 31. e4 {[%clk 00:00:20]} {[%emt
00:00:22]} Nd7 {[%clk 00:01:06]} {[%emt 00:00:15]} 32. Rd1 {[%clk 00:00:20]}
{[%emt 00:00:03]} Qb2 {[%clk 00:01:01]} {[%emt 00:00:08]} 33. Qxc7 {[%clk
00:00:19]} {[%emt 00:00:04]} Qe5+ {[%clk 00:00:27]} {[%emt 00:00:37]} 34. Kh1
{[%clk 00:00:19]} {[%emt 00:00:03]} Rbe8 {[%clk 00:00:27]} {[%emt 00:00:02]} 35.
Rdf1 {[%clk 00:00:19]} {[%emt 00:00:04]} Nf6 {[%clk 00:00:27]} {[%emt
00:00:02]} 36. Qc4 {[%clk 00:00:19]} {[%emt 00:00:02]} Kg8 {[%clk 00:00:25]}
{[%emt 00:00:04]} 37. Qxa6 {[%clk 00:00:19]} {[%emt 00:00:01]} Qb2 {[%clk
00:00:25]} {[%emt 00:00:03]} 38. Ba4 {[%clk 00:00:15]} {[%emt 00:00:07]} Rd8
{[%clk 00:00:19]} {[%emt 00:00:09]} 39. Qb6 {[%clk 00:00:15]} {[%emt 00:00:03]}
Ra8 {[%clk 00:00:18]} {[%emt 00:00:05]} 40. Bc6 {[%clk 00:00:15]} {[%emt
00:00:02]} Rf8 {[%clk 00:00:17]} {[%emt 00:00:04]} 41. Rxf6 {[%clk 00:00:15]}
{[%emt 00:00:03]} gxf6 {[%clk 00:00:17]} 42. Qe3 {[%clk 00:00:15]} Qe5 {[%clk
00:00:16]} {[%emt 00:00:03]} 43. Rf4 {[%clk 00:00:15]} {[%emt 00:00:02]} Kh7
{[%clk 00:00:16]} {[%emt 00:00:03]} 44. Qf3 {[%clk 00:00:15]} {[%emt 00:00:02]}
Kg7 {[%clk 00:00:12]} {[%emt 00:00:07]} 45. Rg4+ {[%clk 00:00:15]} Kh7 {[%clk
00:00:12]} 46. Rf4 {[%clk 00:00:15]} Kg7 {[%clk 00:00:12]} 47. Rg4+ {[%clk
00:00:15]} Kh7 {[%clk 00:00:12]} {[%emt 00:00:02]} 1/2-1/2

[Event "15e Open International de Quenza"]
[Site "Quenza"]
[Date "2026.07.05"]
[Round "4.2"]
[White "LAGARDE, Maxime"]
[Black "TERRIEUX, Kevin"]
[Result "1-0"]
[TimeControl "5min+3s"]
[WhiteTitle "GM"]
[BlackTitle "IM"]
[WhiteFideId "-"]
[BlackFideId "-"]
[WhiteElo "2583"]
[BlackElo "2451"]

1. Nf3 {[%clk 00:05:03]} {[%emt 00:34:57]} d5 {[%clk 00:05:03]} {[%emt
00:00:03]} 2. g3 {[%clk 00:05:03]} {[%emt 00:00:01]} Nf6 {[%clk 00:05:03]}
{[%emt 00:00:03]} 3. Bg2 {[%clk 00:05:03]} Bf5 {[%clk 00:05:03]} {[%emt
00:00:02]} 4. O-O {[%clk 00:05:03]} {[%emt 00:00:02]} e6 {[%clk 00:05:02]}
{[%emt 00:00:05]} 5. d3 {[%clk 00:05:03]} {[%emt 00:00:01]} Nc6 {[%clk
00:04:58]} {[%emt 00:00:07]} 6. Nbd2 {[%clk 00:05:03]} {[%emt 00:00:02]} Be7
{[%clk 00:04:37]} {[%emt 00:00:24]} 7. Qe1 {[%clk 00:05:03]} {[%emt 00:00:01]}
h6 {[%clk 00:04:31]} {[%emt 00:00:09]} 8. e4 {[%clk 00:05:03]} {[%emt
00:00:02]} dxe4 {[%clk 00:04:28]} {[%emt 00:00:06]} 9. dxe4 {[%clk 00:05:03]}
{[%emt 00:00:01]} Bh7 {[%clk 00:04:26]} {[%emt 00:00:04]} 10. Qe2 {[%clk
00:04:53]} {[%emt 00:00:14]} O-O {[%clk 00:04:08]} {[%emt 00:00:22]} 11. e5
{[%clk 00:04:26]} {[%emt 00:00:30]} Nd7 {[%clk 00:04:03]} {[%emt 00:00:07]} 12.
Nb3 {[%clk 00:04:11]} {[%emt 00:00:18]} Nb4 {[%clk 00:03:44]} {[%emt 00:00:23]}
13. Ne1 {[%clk 00:03:45]} {[%emt 00:00:28]} c6 {[%clk 00:03:02]} {[%emt
00:00:45]} 14. a3 {[%clk 00:03:45]} {[%emt 00:00:04]} Na6 {[%clk 00:03:02]}
{[%emt 00:00:01]} 15. Nd3 {[%clk 00:03:30]} {[%emt 00:00:18]} Nac5 {[%clk
00:02:57]} {[%emt 00:00:08]} 16. Nbxc5 {[%clk 00:03:30]} {[%emt 00:00:02]} Nxc5
{[%clk 00:02:57]} {[%emt 00:00:01]} 17. Nf4 {[%clk 00:03:30]} {[%emt 00:00:03]}
a5 {[%clk 00:02:39]} {[%emt 00:00:21]} 18. Nh5 {[%clk 00:03:17]} {[%emt
00:00:15]} Bg6 {[%clk 00:02:29]} {[%emt 00:00:14]} 19. h4 {[%clk 00:03:17]}
{[%emt 00:00:02]} Qc7 {[%clk 00:01:59]} {[%emt 00:00:33]} 20. Nf4 {[%clk
00:03:17]} {[%emt 00:00:03]} Bf5 {[%clk 00:01:57]} {[%emt 00:00:05]} 21. Re1
{[%clk 00:03:15]} {[%emt 00:00:05]} Rfd8 {[%clk 00:01:55]} {[%emt 00:00:05]} 22.
b3 {[%clk 00:02:54]} {[%emt 00:00:24]} Rd7 {[%clk 00:01:55]} {[%emt 00:00:03]}
23. Bb2 {[%clk 00:02:54]} {[%emt 00:00:01]} Rad8 {[%clk 00:01:55]} {[%emt
00:00:02]} 24. Bc3 {[%clk 00:02:45]} {[%emt 00:00:11]} Qb6 {[%clk 00:01:26]}
{[%emt 00:00:32]} 25. a4 {[%clk 00:02:44]} {[%emt 00:00:05]} Na6 {[%clk
00:01:25]} {[%emt 00:00:04]} 26. Be4 {[%clk 00:02:37]} {[%emt 00:00:09]} Bxe4
{[%clk 00:01:23]} {[%emt 00:00:06]} 27. Qxe4 {[%clk 00:02:37]} {[%emt
00:00:01]} Nb4 {[%clk 00:01:22]} {[%emt 00:00:04]} 28. Re2 {[%clk 00:02:12]}
{[%emt 00:00:28]} Nd5 {[%clk 00:01:22]} {[%emt 00:00:02]} 29. Nxd5 {[%clk
00:02:12]} {[%emt 00:00:02]} Rxd5 {[%clk 00:01:15]} {[%emt 00:00:11]} 30. Kg2
{[%clk 00:02:09]} {[%emt 00:00:05]} Bb4 {[%clk 00:01:13]} {[%emt 00:00:05]} 31.
Bxb4 {[%clk 00:02:09]} {[%emt 00:00:03]} axb4 {[%clk 00:01:13]} {[%emt
00:00:01]} 32. Qe3 {[%clk 00:01:56]} {[%emt 00:00:16]} Qa5 {[%clk 00:01:08]}
{[%emt 00:00:09]} 33. Rae1 {[%clk 00:01:55]} {[%emt 00:00:04]} Rd4 {[%clk
00:01:08]} {[%emt 00:00:02]} 34. Qf3 {[%clk 00:01:52]} {[%emt 00:00:06]} Qc5
{[%clk 00:01:08]} {[%emt 00:00:02]} 35. Qe3 {[%clk 00:01:40]} {[%emt 00:00:15]}
R8d5 {[%clk 00:01:05]} {[%emt 00:00:06]} 36. Kg1 {[%clk 00:01:31]} {[%emt
00:00:12]} Qa5 {[%clk 00:01:05]} {[%emt 00:00:02]} 37. Kg2 {[%clk 00:01:29]}
{[%emt 00:00:05]} Qd8 {[%clk 00:01:05]} {[%emt 00:00:01]} 38. Qf3 {[%clk
00:01:27]} {[%emt 00:00:06]} Qc7 {[%clk 00:01:05]} {[%emt 00:00:02]} 39. Re4
{[%clk 00:01:27]} {[%emt 00:00:04]} Qd7 {[%clk 00:01:03]} {[%emt 00:00:05]} 40.
Qf4 {[%clk 00:01:22]} {[%emt 00:00:08]} Rxe4 {[%clk 00:01:03]} {[%emt
00:00:03]} 41. Rxe4 {[%clk 00:01:22]} {[%emt 00:00:01]} c5 {[%clk 00:01:03]} 42.
Qe3 {[%clk 00:01:09]} {[%emt 00:00:16]} b6 {[%clk 00:01:00]} {[%emt 00:00:05]}
43. Rg4 {[%clk 00:01:09]} {[%emt 00:00:02]} Kf8 {[%clk 00:01:00]} {[%emt
00:00:03]} 44. Rf4 {[%clk 00:01:09]} {[%emt 00:00:02]} Kg8 {[%clk 00:01:00]}
{[%emt 00:00:02]} 45. Rg4 {[%clk 00:01:09]} {[%emt 00:00:01]} Kf8 {[%clk
00:01:00]} 46. Rc4 {[%clk 00:00:55]} {[%emt 00:00:17]} Qc7 {[%clk 00:00:55]}
{[%emt 00:00:08]} 47. Re4 {[%clk 00:00:55]} {[%emt 00:00:03]} Qd7 {[%clk
00:00:55]} {[%emt 00:00:02]} 48. h5 {[%clk 00:00:54]} {[%emt 00:00:04]} Rd2
{[%clk 00:00:54]} {[%emt 00:00:04]} 49. a5 {[%clk 00:00:54]} {[%emt 00:00:04]}
bxa5 {[%clk 00:00:48]} {[%emt 00:00:08]} 50. Qxc5+ {[%clk 00:00:54]} {[%emt
00:00:01]} Kg8 {[%clk 00:00:48]} {[%emt 00:00:01]} 51. Qxa5 {[%clk 00:00:46]}
{[%emt 00:00:12]} Rxc2 {[%clk 00:00:40]} {[%emt 00:00:11]} 52. Qxb4 {[%clk
00:00:46]} {[%emt 00:00:02]} Qd1 {[%clk 00:00:38]} {[%emt 00:00:05]} 53. Qd4
{[%clk 00:00:33]} {[%emt 00:00:15]} Qxh5 {[%clk 00:00:36]} {[%emt 00:00:05]} 54.
Qd8+ {[%clk 00:00:33]} {[%emt 00:00:04]} Kh7 {[%clk 00:00:36]} {[%emt
00:00:04]} 55. Qd3 {[%clk 00:00:33]} {[%emt 00:00:01]} Rc1 {[%clk 00:00:30]}
{[%emt 00:00:08]} 56. Re1+ {[%clk 00:00:32]} {[%emt 00:00:04]} 1-0

[Event "15e Open International de Quenza"]
[Site "Quenza"]
[Date "2026.07.05"]
[Round "4.11"]
[White "PIERI, Pierre-Louis"]
[Black "GERONIMI, Paul-Antoine"]
[Result "1-0"]
[TimeControl "5min+3s"]
[WhiteTitle "-"]
[BlackTitle "-"]
[WhiteFideId "-"]
[BlackFideId "-"]
[WhiteElo "2236"]
[BlackElo "1844"]

1. e4 {[%clk 00:05:03]} c5 {[%clk 00:05:03]} {[%emt 00:00:01]} 2. Nc3 {[%clk
00:05:03]} {[%emt 00:00:03]} e6 {[%clk 00:05:03]} {[%emt 00:00:01]} 3. Nge2
{[%clk 00:05:03]} {[%emt 00:00:01]} a6 {[%clk 00:04:59]} {[%emt 00:00:07]} 4.
g3 {[%clk 00:05:03]} Nf6 {[%clk 00:04:57]} {[%emt 00:00:05]} 5. Bg2 {[%clk
00:05:02]} {[%emt 00:00:04]} d6 {[%clk 00:04:41]} {[%emt 00:00:18]} 6. O-O
{[%clk 00:05:02]} {[%emt 00:00:03]} Be7 {[%clk 00:04:41]} 7. d4 {[%clk
00:04:56]} {[%emt 00:00:10]} cxd4 {[%clk 00:04:41]} {[%emt 00:00:01]} 8. Nxd4
{[%clk 00:04:56]} {[%emt 00:00:01]} h6 {[%clk 00:04:30]} {[%emt 00:00:14]} 9.
Be3 {[%clk 00:04:53]} {[%emt 00:00:06]} O-O {[%clk 00:04:30]} {[%emt 00:00:04]}
10. h3 {[%clk 00:04:52]} {[%emt 00:00:04]} Nbd7 {[%clk 00:04:23]} {[%emt
00:00:10]} 11. Qd2 {[%clk 00:04:52]} {[%emt 00:00:03]} Rb8 {[%clk 00:03:50]}
{[%emt 00:00:37]} 12. Rad1 {[%clk 00:04:36]} {[%emt 00:00:19]} b5 {[%clk
00:03:50]} {[%emt 00:00:01]} 13. Nc6 {[%clk 00:04:36]} {[%emt 00:00:01]} Qe8
{[%clk 00:03:23]} {[%emt 00:00:29]} 14. Nxb8 {[%clk 00:04:36]} {[%emt
00:00:02]} Nxb8 {[%clk 00:03:23]} 15. a3 {[%clk 00:04:30]} {[%emt 00:00:09]} e5
{[%clk 00:02:55]} {[%emt 00:00:31]} 16. f4 {[%clk 00:04:27]} {[%emt 00:00:06]}
Be6 {[%clk 00:02:46]} {[%emt 00:00:12]} 17. f5 {[%clk 00:04:27]} {[%emt
00:00:02]} Bc4 {[%clk 00:02:46]} 18. Rf2 {[%clk 00:04:25]} {[%emt 00:00:05]} b4
{[%clk 00:02:22]} {[%emt 00:00:27]} 19. axb4 {[%clk 00:04:25]} {[%emt
00:00:01]} Nh5 {[%clk 00:02:09]} {[%emt 00:00:16]} 20. b3 {[%clk 00:04:10]}
{[%emt 00:00:17]} Bb5 {[%clk 00:02:09]} {[%emt 00:00:03]} 21. g4 {[%clk
00:04:10]} {[%emt 00:00:01]} Nf4 {[%clk 00:02:09]} {[%emt 00:00:02]} 22. Bxf4
{[%clk 00:04:00]} {[%emt 00:00:13]} exf4 {[%clk 00:02:09]} {[%emt 00:00:01]} 23.
Qxf4 {[%clk 00:03:49]} {[%emt 00:00:13]} Qc8 {[%clk 00:01:46]} {[%emt
00:00:26]} 24. Nd5 {[%clk 00:03:48]} {[%emt 00:00:05]} Bg5 {[%clk 00:01:46]} 25.
Qxg5 {[%clk 00:03:35]} {[%emt 00:00:16]} hxg5 {[%clk 00:01:46]} 26. Ne7+ {[%clk
00:03:35]} Kh8 {[%clk 00:01:46]} {[%emt 00:00:02]} 27. Nxc8 {[%clk 00:03:35]}
{[%emt 00:00:02]} Rxc8 {[%clk 00:01:46]} 28. c4 {[%clk 00:03:35]} {[%emt
00:00:01]} Be8 {[%clk 00:01:00]} {[%emt 00:00:49]} 29. Rxd6 {[%clk 00:03:35]}
{[%emt 00:00:02]} Nc6 {[%clk 00:00:53]} {[%emt 00:00:09]} 30. Rfd2 {[%clk
00:03:35]} {[%emt 00:00:02]} Kh7 {[%clk 00:00:46]} {[%emt 00:00:10]} 31. e5
{[%clk 00:03:17]} {[%emt 00:00:21]} Nxb4 {[%clk 00:00:39]} {[%emt 00:00:10]} 32.
Rd8 {[%clk 00:03:16]} {[%emt 00:00:04]} Rxd8 {[%clk 00:00:09]} {[%emt
00:00:33]} 33. Rxd8 {[%clk 00:03:16]} {[%emt 00:00:02]} Bc6 {[%clk 00:00:09]}
34. e6 {[%clk 00:03:09]} {[%emt 00:00:10]} fxe6 {[%clk 00:00:09]} {[%emt
00:00:01]} 35. fxe6 {[%clk 00:03:09]} Bxg2 {[%clk 00:00:08]} {[%emt 00:00:04]}
36. Kxg2 {[%clk 00:03:09]} {[%emt 00:00:03]} Kg6 {[%clk 00:00:08]} {[%emt
00:00:04]} 37. e7 {[%clk 00:03:09]} {[%emt 00:00:01]} Nc6 {[%clk 00:00:08]} 38.
e8=Q+ {[%clk 00:03:09]} {[%emt 00:00:02]} 1-0

[Event "15e Open International de Quenza"]
[Site "Quenza"]
[Date "2026.07.05"]
[Round "4.4"]
[White "MAURIZZI, Marc Andria"]
[Black "RELANGE, Eloi"]
[Result "1-0"]
[TimeControl "5min+3s"]
[WhiteTitle "GM"]
[BlackTitle "GM"]
[WhiteFideId "-"]
[BlackFideId "-"]
[WhiteElo "2556"]
[BlackElo "2416"]

1. e4 {[%clk 00:05:03]} c5 {[%clk 00:05:03]} {[%emt 00:00:01]} 2. Nf3 {[%clk
00:05:03]} {[%emt 00:00:01]} Nc6 {[%clk 00:05:03]} {[%emt 00:00:01]} 3. Bb5
{[%clk 00:05:03]} {[%emt 00:00:03]} g6 {[%clk 00:05:03]} {[%emt 00:00:02]} 4.
O-O {[%clk 00:05:01]} {[%emt 00:00:05]} Bg7 {[%clk 00:05:03]} {[%emt 00:00:02]}
5. Nc3 {[%clk 00:05:01]} {[%emt 00:00:02]} e5 {[%clk 00:04:59]} {[%emt
00:00:08]} 6. a3 {[%clk 00:04:42]} {[%emt 00:00:23]} Nge7 {[%clk 00:04:55]}
{[%emt 00:00:06]} 7. b4 {[%clk 00:04:42]} {[%emt 00:00:01]} d6 {[%clk
00:04:42]} {[%emt 00:00:16]} 8. bxc5 {[%clk 00:04:42]} {[%emt 00:00:01]} dxc5
{[%clk 00:04:42]} 9. d3 {[%clk 00:04:42]} {[%emt 00:00:01]} a6 {[%clk
00:04:27]} {[%emt 00:00:18]} 10. Bc4 {[%clk 00:04:34]} {[%emt 00:00:10]} Nd4
{[%clk 00:04:06]} {[%emt 00:00:24]} 11. a4 {[%clk 00:03:57]} {[%emt 00:00:41]}
O-O {[%clk 00:04:02]} {[%emt 00:00:07]} 12. Rb1 {[%clk 00:03:52]} {[%emt
00:00:08]} Bg4 {[%clk 00:04:01]} {[%emt 00:00:03]} 13. Rxb7 {[%clk 00:03:50]}
{[%emt 00:00:05]} Nec6 {[%clk 00:03:59]} {[%emt 00:00:05]} 14. Kh1 {[%clk
00:03:21]} {[%emt 00:00:32]} Bxf3 {[%clk 00:03:31]} {[%emt 00:00:31]} 15. gxf3
{[%clk 00:03:21]} Qh4 {[%clk 00:03:31]} {[%emt 00:00:01]} 16. Nd5 {[%clk
00:02:26]} {[%emt 00:00:58]} Qh3 {[%clk 00:03:15]} {[%emt 00:00:19]} 17. Rg1
{[%clk 00:02:26]} {[%emt 00:00:02]} Nxf3 {[%clk 00:03:14]} {[%emt 00:00:04]} 18.
Rg2 {[%clk 00:02:26]} Rab8 {[%clk 00:03:06]} {[%emt 00:00:12]} 19. Bxa6 {[%clk
00:02:13]} {[%emt 00:00:17]} Ncd4 {[%clk 00:02:52]} {[%emt 00:00:17]} 20. a5
{[%clk 00:01:39]} {[%emt 00:00:37]} Nxc2 {[%clk 00:02:52]} {[%emt 00:00:02]} 21.
Qf1 {[%clk 00:00:47]} {[%emt 00:00:56]} Nce1 {[%clk 00:02:22]} {[%emt
00:00:33]} 22. Ne3 {[%clk 00:00:21]} {[%emt 00:00:29]} Ra8 {[%clk 00:02:04]}
{[%emt 00:00:21]} 23. Rb6 {[%clk 00:00:21]} {[%emt 00:00:01]} Bh6 {[%clk
00:01:46]} {[%emt 00:00:21]} 24. Rgxg6+ {[%clk 00:00:21]} {[%emt 00:00:03]}
fxg6 {[%clk 00:01:37]} {[%emt 00:00:12]} 25. Qxh3 {[%clk 00:00:21]} {[%emt
00:00:01]} Rf4 {[%clk 00:01:26]} {[%emt 00:00:14]} 26. Qxh6 {[%clk 00:00:14]}
{[%emt 00:00:10]} Rh4 {[%clk 00:01:26]} {[%emt 00:00:01]} 27. Qxh4 {[%clk
00:00:14]} {[%emt 00:00:03]} 1-0